fUSD/lending_fUSD_20240508
["ID","MTS","AMOUNT","RATE_DAILY","PERIOD"]
[326608597,1715137843868,-500.0,0.00019178,2]
[326608598,1715137843877,-507.69571702,0.00019178,2]
[326608599,1715137843886,-633.10327007,0.00019178,2]
[326608600,1715137843895,-647.15237175,0.00019178,2]
[326608601,1715137843904,-365.55842447,0.00019178,2]
[326608602,1715137843913,-1112.47,0.00019178,2]
[326608603,1715137843922,-202.46669835,0.00019178,2]
[326608604,1715137843931,-500.0,0.00019178,2]
[326608605,1715137843940,-512.37517045,0.00019178,2]
[326608606,1715137843950,-515.54501552,0.00019178,2]
[326608607,1715137843959,-500.0,0.00019178,2]
[326608608,1715137843967,-617.14769495,0.00019178,2]
[326608609,1715137843977,-533.85165874,0.00019178,2]
[326608610,1715137843986,-500.0,0.00019178,2]
[326608611,1715137843995,-525.13628706,0.00019178,2]
[326608612,1715137844003,-514.79451797,0.00019178,2]
[326608613,1715137844012,-587.1380854,0.00019178,2]
[326608614,1715137844022,-500.0,0.00019178,2]
[326608615,1715137844032,-507.62204142,0.00019178,2]
[326608616,1715137844041,-500.0,0.00019178,2]
[326608617,1715137844051,-500.0,0.00019178,2]
[326608618,1715137844060,-500.0,0.00019178,2]
[326608619,1715137844069,-496.97941625,0.00019178,2]
[326608620,1715137844078,-500.0,0.00019178,2]
[326608621,1715137844087,-416.14626724,0.00019178,2]
[326608622,1715137844097,-508.95864342,0.00019178,2]
[326608623,1715137844106,-506.65677455,0.00019178,2]
[326608624,1715137844116,-511.61544316,0.00019178,2]
[326608625,1715137844126,-500.0,0.00019178,2]
[326608626,1715137844135,-500.0,0.00019178,2]
[326608627,1715137844145,-500.0,0.00019178,2]
[326608628,1715137844155,-508.9220416,0.00019178,2]
[326608629,1715137844164,-500.0,0.00019178,2]
[326608630,1715137844173,-500.0,0.00019178,2]
[326608631,1715137844183,-500.0,0.00019178,2]
[326608632,1715137844192,-500.0,0.00019178,2]
[326608633,1715137844201,-500.0,0.00019178,2]
[326608634,1715137844210,-500.0,0.00019178,2]
[326608635,1715137844220,-500.0,0.00019178,2]
[326608636,1715137844229,-500.0,0.00019178,2]
[326608637,1715137844238,-500.0,0.00019178,2]
[326608638,1715137844247,-500.0,0.00019178,2]
[326608639,1715137844256,-500.0,0.00019178,2]
[326608640,1715137844266,-506.62439215,0.00019178,2]
[326608641,1715137844275,-500.0,0.00019178,2]
[326608642,1715137844284,-512.10236455,0.00019178,2]
[326608643,1715137844293,-492.12150637,0.00019178,2]
[326608644,1715137844302,-510.8887783,0.00019178,2]
[326608645,1715137844311,-500.0,0.00019178,2]
[326608646,1715137844320,-510.0406853,0.00019178,2]
[326608647,1715137844330,-510.19380019,0.00019178,2]
[326608648,1715137844339,-509.97681306,0.00019178,2]
[326608649,1715137844348,-500.0,0.00019178,2]
[326608650,1715137844357,-505.68429249,0.00019178,2]
[326608651,1715137844366,-510.57325655,0.00019178,2]
[326608652,1715137844376,-522.62564848,0.00019178,2]
[326608653,1715137844385,-509.30998017,0.00019178,2]
[326608654,1715137844394,-513.74185021,0.00019178,2]
[326608655,1715137844403,-500.0,0.00019178,2]
[326608656,1715137844412,-500.0,0.00019178,2]
[326608657,1715137844422,-500.0,0.00019178,2]
[326608658,1715137844431,-511.26214491,0.00019178,2]
[326608659,1715137844440,-514.15226957,0.00019178,2]
[326608660,1715137844449,-500.0,0.00019178,2]
[326608661,1715137844459,-500.0,0.00019178,2]
[326608662,1715137844468,-500.0,0.00019178,2]
[326608663,1715137844477,-500.0,0.00019178,2]
[326608664,1715137844487,-500.0,0.00019178,2]
[326608665,1715137844495,-500.0,0.00019178,2]
[326608666,1715137844505,-500.0,0.00019178,2]
[326608667,1715137844514,-500.0,0.00019178,2]
[326608668,1715137844523,-500.0,0.00019178,2]
[326608669,1715137844533,-500.0,0.00019178,2]
[326608670,1715137844542,-500.0,0.00019178,2]
[326608671,1715137844551,-500.0,0.00019178,2]
[326608672,1715137844560,-500.0,0.00019178,2]
[326608673,1715137844569,-514.71128556,0.00019178,2]
[326608674,1715137844578,-157.22522561,0.00019178,2]
[326608675,1715137844588,-500.0,0.00019178,2]
[326608676,1715137844597,-508.885072,0.00019178,2]
[326608677,1715137844606,-500.0,0.00019178,2]
[326608678,1715137844615,-507.45009734,0.00019178,2]
[326608679,1715137844624,-506.95404704,0.00019178,2]
[326608680,1715137844633,-505.68930447,0.00019178,2]
[326608681,1715137844642,-506.46492096,0.00019178,2]
[326608682,1715137844651,-505.28609178,0.00019178,2]
[326608683,1715137844661,-500.0,0.00019178,2]
[326608684,1715137844673,-500.0,0.00019178,2]
[326608685,1715137844682,-500.0,0.00019178,2]
[326608686,1715137844691,-505.9893008,0.00019178,2]
[326608687,1715137844700,-513.18504295,0.00019178,2]
[326608688,1715137844710,-507.40486932,0.00019178,2]
[326608689,1715137844720,-504.46837637,0.00019178,2]
[326608690,1715137844729,-565.40615786,0.00019178,2]
[326608691,1715137844738,-282.67875544,0.00019178,2]
[326608692,1715137844749,-511.37527113,0.00019178,2]
[326608693,1715137844758,-500.0,0.00019178,2]
[326608694,1715137844766,-516.12771659,0.00019178,2]
[326608695,1715137844776,-510.13147647,0.00019178,2]
[326608696,1715137844785,-506.07024218,0.00019178,2]
[326608697,1715137844794,-512.86527698,0.00019178,2]
[326608698,1715137844803,-500.0,0.00019178,2]
[326608699,1715137844812,-504.94294706,0.00019178,2]
[326608700,1715137844821,-506.17486568,0.00019178,2]
[326608701,1715137844829,-500.0,0.00019178,2]
[326608702,1715137844839,-500.0,0.00019178,2]
[326608703,1715137844848,-500.0,0.00019178,2]
[326608704,1715137844857,-500.0,0.00019178,2]
[326608705,1715137844866,-500.0,0.00019178,2]
[326608706,1715137844875,-500.0,0.00019178,2]
[326608707,1715137844885,-500.0,0.00019178,2]
[326608708,1715137844894,-500.0,0.00019178,2]
[326608709,1715137844902,-500.0,0.00019178,2]
[326608710,1715137844911,-388.10439982,0.00019178,2]
[326608711,1715137844920,-437.28701772,0.00019178,2]
[326608712,1715137844930,-500.0,0.00019178,2]
[326608713,1715137844938,-500.0,0.00019178,2]
[326608714,1715137844947,-509.23183307,0.00019178,2]
[326608715,1715137844956,-11627.08,0.00019178,2]
[326608716,1715137844966,-500.0,0.00019178,2]
[326608717,1715137844975,-183.01923829,0.00019178,2]
[326608719,1715137844985,-341.33917827,0.00019178,2]
[326608721,1715137844994,-203.97846375,0.00019178,2]
[326608723,1715137845003,-248.48476108,0.00019178,2]
[326608724,1715137845012,-500.0,0.00019178,2]
[326608725,1715137845022,-536.71621327,0.00019178,2]
[326608726,1715137845031,-294.75466688,0.00019178,2]
[326608727,1715137845041,-500.0,0.00019178,2]
[326608728,1715137845050,-500.0,0.00019178,2]
[326608729,1715137845059,-500.0,0.00019178,2]
[326608730,1715137845222,-528.48143959,0.00019178,2]
[326608731,1715137845232,-525.53346378,0.00019178,2]
[326608732,1715137845242,-500.0,0.00019178,2]
[326608733,1715137845251,-500.0,0.00019178,2]
[326608734,1715137845261,-500.0,0.00019178,2]
[326608735,1715137845271,-500.0,0.00019178,2]
[326608736,1715137845280,-1184.38,0.00019178,2]
[326608737,1715137845290,-239.57387049,0.00019178,2]
[326608738,1715137845299,-500.0,0.00019178,2]
[326608739,1715137845309,-23770.26,0.00019178,2]
[326608740,1715137845319,-563.93493626,0.00019178,2]
[326608741,1715137845328,-633.22265458,0.00019178,2]
[326608742,1715137845337,-500.0,0.00019178,2]
[326608743,1715137845347,-438.01703384,0.00019178,2]
[326608744,1715137845356,-500.0,0.00019178,2]
[326608745,1715137845365,-3687.85,0.00019178,2]
[326608746,1715137845375,-475.20336486,0.00019178,2]
[326608747,1715137845384,-500.0,0.00019178,2]
[326608748,1715137845393,-310.14094758,0.00019178,2]
[326608749,1715137845403,-500.0,0.00019178,2]
[326608750,1715137845412,-1886.79,0.00019178,2]
[326608751,1715137845421,-309.69071036,0.00019178,2]
[326608752,1715137845430,-500.0,0.00019178,2]
[326608753,1715137845440,-500.0,0.00019178,2]
[326608754,1715137845449,-500.0,0.00019178,2]
[326608755,1715137845459,-500.0,0.00019178,2]
[326608756,1715137845468,-500.0,0.00019178,2]
[326608757,1715137845477,-500.0,0.00019178,2]
[326608758,1715137845487,-500.0,0.00019178,2]
[326608759,1715137845497,-500.0,0.00019178,2]
[326608760,1715137845506,-512.88,0.00019178,2]
[326608761,1715137845517,-500.0,0.00019178,2]
[326608762,1715137845526,-500.0,0.00019178,2]
[326608763,1715137845535,-500.0,0.00019178,2]
[326608764,1715137845544,-500.0,0.00019178,2]
[326608765,1715137845553,-500.0,0.00019178,2]
[326608766,1715137845563,-595.56,0.00019178,2]
[326608767,1715137845572,-162.22,0.00019178,2]
[326608768,1715137845581,-154.67,0.00019178,2]
[326608769,1715137845591,-161.0,0.00019186,2]
[326608770,1715137845601,-193.658,0.00019186,2]
[326608771,1715137845610,-251.989,0.00019186,2]
[326608772,1715137845620,-161.12,0.00019186,2]
[326608773,1715137845630,-210.0,0.00019186,2]
[326608774,1715137845639,-200.0,0.00019186,2]
[326608775,1715137845649,-258.242,0.00019186,2]
[326608776,1715137845659,-260.0,0.00019186,2]
[326608777,1715137845672,-194.213,0.00019186,2]
[326608778,1715137845682,-200.0,0.00019186,2]
[326608779,1715137845691,-272.828,0.00019186,2]
[326608780,1715137845701,-275.0,0.00019186,2]
[326608781,1715137845711,-151.1,0.00019186,2]
[326608782,1715137845721,-235.039,0.00019186,2]
[326608783,1715137845730,-282.498,0.00019186,2]
[326608784,1715137845740,-182.101,0.00019186,2]
[326608785,1715137845754,-165.0,0.00019186,2]
[326608786,1715137845764,-150.958,0.00019186,2]
[326608787,1715137845775,-151.14,0.00019186,2]
[326608788,1715137845784,-245.683,0.00019186,2]
[326608789,1715137845794,-2301.0,0.00019186,2]
[326608790,1715137845804,-1397.0,0.00019186,2]
[326608791,1715137845813,-463.0,0.00019186,2]
[326608792,1715137845823,-972.0,0.00019186,2]
[326608793,1715137845832,-663.265,0.00019186,2]
[326608794,1715137845842,-1260.0,0.00019186,2]
[326608795,1715137845851,-1247.427,0.00019186,2]
[326608796,1715137845861,-611.0,0.00019186,2]
[326608797,1715137845870,-438.0,0.00019186,2]
[326608798,1715137845880,-809.0,0.00019186,2]
[326608799,1715137845889,-1788.0,0.00019186,2]
[326608800,1715137845898,-2431.0,0.00019186,2]
[326608801,1715137845909,-150.0,0.00019186,2]
[326608802,1715137845918,-421.0,0.00019186,2]
[326608803,1715137845928,-1478.0,0.00019186,2]
[326608804,1715137845938,-150.0,0.00019186,2]
[326608805,1715137845948,-1139.0,0.00019186,2]
[326608806,1715137845957,-1645.0,0.00019186,2]
[326608807,1715137845966,-444.0,0.00019186,2]
[326608808,1715137845975,-215.0,0.00019186,2]
[326608809,1715137845985,-3154.0,0.00019186,2]
[326608810,1715137845994,-288.0,0.00019186,2]
[326608811,1715137846004,-5745.0,0.00019186,2]
[326608812,1715137846013,-2295.0,0.00019186,2]
[326608813,1715137846024,-5907.0,0.00019186,2]
[326608814,1715137846033,-37800.0,0.00019186,2]
[326608815,1715137846043,-1062.756,0.00019186,2]
[326608816,1715137846054,-165.51,0.000192,2]
[326608817,1715137846064,-335.25,0.000192,2]
[326608818,1715137846074,-282.29,0.000192,2]
[326608819,1715137846084,-151.9145512,0.00019318,2]
[326608820,1715137846094,-155.97090031,0.00019382,2]
[326608821,1715137846104,-295.69794596,0.00019452,2]
[326608822,1715137846114,-500.0,0.00019452,2]
[326608823,1715137846125,-603.55752816,0.00019452,2]
[326608824,1715137846135,-507.99349468,0.00019452,2]
[326608825,1715137846146,-500.0,0.00019452,2]
[326608826,1715137846164,-500.0,0.00019452,2]
[326608827,1715137846185,-588.71246363,0.00019452,2]
[326608828,1715137846207,-500.0,0.00019452,2]
[326608829,1715137846229,-627.26025714,0.00019452,2]
[326608830,1715137846246,-500.0,0.00019452,2]
[326608831,1715137846268,-1112.47,0.00019452,2]
[326608832,1715137846292,-500.0,0.00019452,2]
[326608833,1715137846315,-484.79900604,0.00019452,2]
[326608834,1715137846332,-265.44575813,0.00019452,2]
[326608835,1715137846342,-500.0,0.00019452,2]
[326608836,1715137846351,-209.65,0.00019452,2]
[326608837,1715137846361,-500.0,0.00019452,2]
[326608838,1715137846370,-572.04854695,0.00019452,2]
[326608839,1715137846380,-500.0,0.00019452,2]
[326608840,1715137846390,-254.12686904,0.00019452,2]
[326608841,1715137846399,-500.0,0.00019452,2]
[326608842,1715137846409,-327.9972131,0.00019452,2]
[326608843,1715137846419,-177.42671814,0.00019452,2]
[326608844,1715137846429,-192.29874586,0.00019452,2]
[326608845,1715137846438,-504.90779152,0.00019452,2]
[326608846,1715137846448,-580.73543447,0.00019452,2]
[326608847,1715137846457,-500.0,0.00019452,2]
[326608848,1715137846467,-500.0,0.00019452,2]
[326608849,1715137846477,-234.39851626,0.00019452,2]
[326608850,1715137846488,-11627.08,0.00019452,2]
[326608851,1715137846498,-500.0,0.00019452,2]
[326608852,1715137846507,-500.0,0.00019452,2]
[326608853,1715137846517,-500.0,0.00019452,2]
[326608854,1715137846528,-152.6360394,0.00019452,2]
[326608855,1715137846538,-500.0,0.00019452,2]
[326608856,1715137846548,-500.0,0.00019452,2]
[326608857,1715137846557,-500.0,0.00019452,2]
[326608858,1715137846567,-500.0,0.00019452,2]
[326608859,1715137846577,-500.0,0.00019452,2]
[326608860,1715137846587,-1184.38,0.00019452,2]
[326608861,1715137846596,-334.76418528,0.00019452,2]
[326608862,1715137846606,-23770.26,0.00019452,2]
[326608863,1715137846616,-500.0,0.00019452,2]
[326608864,1715137846626,-500.0,0.00019452,2]
[326608865,1715137846636,-3687.85,0.00019452,2]
[326608866,1715137846645,-500.0,0.00019452,2]
[326608867,1715137846655,-500.0,0.00019452,2]
[326608868,1715137846669,-1886.79,0.00019452,2]
[326608869,1715137846678,-500.0,0.00019452,2]
[326608870,1715137846688,-500.0,0.00019452,2]
[326608871,1715137846698,-500.0,0.00019452,2]
[326608872,1715137846707,-500.0,0.00019452,2]
[326608873,1715137846717,-500.0,0.00019452,2]
[326608874,1715137846726,-500.0,0.00019452,2]
[326608875,1715137846736,-500.0,0.00019452,2]
[326608876,1715137846747,-500.0,0.00019452,2]
[326608877,1715137846756,-500.0,0.00019452,2]
[326608878,1715137846766,-500.0,0.00019452,2]
[326608879,1715137846775,-158.72050771,0.00019494,2]
[326608880,1715137846785,-1009.281128,0.000195,2]
[326608881,1715137846794,-155.15805148,0.00019701,2]
[326608882,1715137846803,-500.0,0.00019726,2]
[326608883,1715137846812,-179.70275233,0.00019726,2]
[326608884,1715137846821,-496.04,0.00019726,2]
[326608885,1715137846831,-250.57750555,0.00019726,2]
[326608886,1715137846841,-500.0,0.00019726,2]
[326608887,1715137846851,-1112.47,0.00019726,2]
[326608888,1715137846860,-470.43247533,0.00019726,2]
[326608889,1715137846869,-243.18,0.00019726,2]
[326608890,1715137846878,-260.33745665,0.00019726,2]
[326608891,1715137846888,-500.0,0.00019726,2]
[326608892,1715137846897,-500.0,0.00019726,2]
[326608893,1715137846907,-500.0,0.00019726,2]
[326608894,1715137846916,-500.0,0.00019726,2]
[326608895,1715137846925,-11627.08,0.00019726,2]
[326608896,1715137846935,-500.0,0.00019726,2]
[326608897,1715137846945,-500.0,0.00019726,2]
[326608898,1715137846954,-500.0,0.00019726,2]
[326608899,1715137846963,-500.0,0.00019726,2]
[326608900,1715137846973,-500.0,0.00019726,2]
[326608901,1715137846983,-500.0,0.00019726,2]
[326608902,1715137846992,-500.0,0.00019726,2]
[326608903,1715137847001,-500.0,0.00019726,2]
[326608904,1715137847011,-1184.38,0.00019726,2]
[326608905,1715137847021,-23770.26,0.00019726,2]
[326608906,1715137847030,-500.0,0.00019726,2]
[326608907,1715137847039,-357.9,0.00019726,2]
[326608908,1715137847048,-3687.85,0.00019726,2]
[326608909,1715137847057,-500.0,0.00019726,2]
[326608910,1715137847066,-500.0,0.00019726,2]
[326608911,1715137847075,-1886.79,0.00019726,2]
[326608912,1715137847084,-500.0,0.00019726,2]
[326608913,1715137847093,-500.0,0.00019726,2]
[326608914,1715137847102,-500.0,0.00019726,2]
[326608915,1715137847112,-175.61294702,0.00019726,2]
[326608916,1715137847123,-500.0,0.00019726,2]
[326608917,1715137847132,-500.0,0.00019726,2]
[326608918,1715137847141,-542.46,0.00019726,2]
[326608919,1715137847152,-500.0,0.00019726,2]
[326608920,1715137847161,-500.0,0.00019726,2]
[326608921,1715137847170,-500.0,0.00019726,2]
[326608922,1715137847180,-291.370452,0.00019726,2]
[326608923,1715137847189,-159.8249879,0.00019735,2]
[326608924,1715137847199,-200.0,0.00019739,2]
[326608925,1715137847208,-1000.0,0.00019739,2]
[326608926,1715137847223,-200.0,0.00019739,2]
[326608927,1715137847237,-500.0,0.00019739,2]
[326608928,1715137847247,-200.0,0.00019739,2]
[326608929,1715137847257,-200.0,0.00019739,2]
[326608930,1715137847266,-200.0,0.0001974,2]
[326608931,1715137847276,-200.0,0.0001974,2]
[326608932,1715137847286,-1000.0,0.0001974,2]
[326608933,1715137847296,-1000.0,0.0001974,2]
[326608934,1715137847307,-500.0,0.0001974,2]
[326608935,1715137847317,-500.0,0.0001974,2]
[326608936,1715137847327,-200.0,0.0001974,2]
[326608937,1715137847336,-153.8305885,0.00019874,2]
[326608938,1715137847346,-222.0093951,0.00019898,2]
[326608939,1715137847356,-5859.3084292,0.00019898,2]
[326608940,1715137847367,-70382.96270727,0.000199,5]
[326608941,1715137847377,-500.0,0.000199,2]
[326608942,1715137847387,-205.98357072,0.000199,2]
[326608943,1715137847397,-1045.01831653,0.000199,2]
[326608944,1715137847407,-37524.30481297,0.000199,2]
[326608945,1715137847416,-549.52050535,0.000199,2]
[326608946,1715137847427,-155.32976978,0.000199,2]
[326608947,1715137847437,-155.15498906,0.000199,2]
[326608948,1715137847447,-155.17152302,0.000199,2]
[326608949,1715137847457,-180.17390537,0.000199,2]
[326608950,1715137847467,-2900.0,0.000199,7]
[326608951,1715137847477,-159.50899119,0.000199,2]
[326608952,1715137847487,-10532.8990015,0.00019903,2]
[326608953,1715137847497,-3380.6915072,0.00019903,2]
[326608954,1715137847507,-39972.5420865,0.00019903,2]
[326608955,1715137847516,-8957.9890126,0.00019903,2]
[326608956,1715137847527,-167.12,0.00019906,2]
[326608957,1715137847536,-151.9145512,0.0001994,2]
[326608958,1715137847546,-153.8305885,0.00019964,2]
[326608959,1715137847556,-153.8305885,0.0001997,2]
[326608960,1715137847566,-523.88398753,0.0001999,2]
[326608961,1715137847575,-1776.26175845,0.0002,2]
[326608962,1715137847584,-155.14362128,0.0002,2]
[326608963,1715137847594,-155.3359688,0.0002,2]
[326608964,1715137847604,-1264.91854621,0.0002,2]
[326608965,1715137847614,-294.86743054,0.0002,2]
[326608966,1715137847623,-155.35074619,0.0002,2]
[326608967,1715137847633,-445.94042509,0.0002,2]
[326608968,1715137847643,-359.64419974,0.0002,2]
[326608969,1715137847653,-864.16897741,0.0002,2]
[326608970,1715137847665,-6249.46628877,0.0002,2]
[326608971,1715137847674,-5194.81935943,0.0002,2]
[326608972,1715137847684,-155.0,0.0002,2]
[326608973,1715137847694,-2845.76412487,0.0002,2]
[326608974,1715137847705,-2619.29562679,0.0002,2]
[326608975,1715137847714,-1205.94304995,0.0002,2]
[326608976,1715137847723,-800.0,0.0002,3]
[326608977,1715137847732,-500.0,0.0002,2]
[326608978,1715137847743,-500.0,0.0002,2]
[326608979,1715137847752,-1112.47,0.0002,2]
[326608980,1715137847763,-500.0,0.0002,2]
[326608981,1715137847774,-406.51077137,0.0002,2]
[326608982,1715137847783,-500.0,0.0002,2]
[326608983,1715137847792,-500.0,0.0002,2]
[326608984,1715137847801,-11627.08,0.0002,2]
[326608985,1715137847810,-198.73167575,0.0002,2]
[326608986,1715137847819,-571.72113127,0.0002,2]
[326608987,1715137847829,-500.0,0.0002,2]
[326608988,1715137847838,-500.0,0.0002,2]
[326608989,1715137847848,-500.0,0.0002,2]
[326608990,1715137847858,-500.0,0.0002,2]
[326608991,1715137847868,-500.0,0.0002,2]
[326608992,1715137847878,-500.0,0.0002,2]
[326608993,1715137847888,-1667.565783,0.0002,2]
[326608994,1715137847897,-1184.38,0.0002,2]
[326608995,1715137847907,-1000.0,0.0002,2]
[326608996,1715137847917,-500.0,0.0002,2]
[326608997,1715137847926,-3687.85,0.0002,2]
[326608998,1715137848090,-500.0,0.0002,2]
[326608999,1715137848103,-500.0,0.0002,2]
[326609000,1715137848114,-1886.79,0.0002,2]
[326609001,1715137848126,-500.0,0.0002,2]
[326609002,1715137848136,-500.0,0.0002,2]
[326609003,1715137848146,-500.0,0.0002,2]
[326609004,1715137848155,-500.0,0.0002,2]
[326609005,1715137848165,-500.0,0.0002,2]
[326609006,1715137848174,-155.6130374,0.0002,2]
[326609007,1715137848184,-500.0,0.0002,2]
[326609008,1715137848195,-500.0,0.0002,2]
[326609009,1715137848204,-1000.0,0.00020177,2]
[326609010,1715137848213,-450.6226235,0.00020273,2]
[326609011,1715137848223,-500.0,0.00020273,2]
[326609012,1715137848232,-1112.47,0.00020273,2]
[326609013,1715137848242,-500.0,0.00020273,2]
[326609014,1715137848251,-276.79765766,0.00020273,2]
[326609015,1715137848261,-500.0,0.00020273,2]
[326609016,1715137848272,-11627.08,0.00020273,2]
[326609017,1715137848282,-500.0,0.00020273,2]
[326609018,1715137848291,-500.0,0.00020273,2]
[326609019,1715137848301,-500.0,0.00020273,2]
[326609020,1715137848311,-500.0,0.00020273,2]
[326609021,1715137848321,-500.0,0.00020273,2]
[326609022,1715137848331,-500.0,0.00020273,2]
[326609023,1715137848340,-1184.38,0.00020273,2]
[326609024,1715137848350,-500.0,0.00020273,2]
[326609025,1715137848360,-3687.85,0.00020273,2]
[326609026,1715137848370,-500.0,0.00020273,2]
[326609027,1715137848381,-500.0,0.00020273,2]
[326609028,1715137848391,-1886.79,0.00020273,2]
[326609029,1715137848401,-288.72816841,0.00020273,2]
[326609030,1715137848411,-500.0,0.00020273,2]
[326609031,1715137848421,-500.0,0.00020273,2]
[326609032,1715137848431,-249.6533011,0.00020273,2]
[326609033,1715137848441,-500.0,0.00020273,2]
[326609034,1715137848450,-500.0,0.00020273,2]
[326609035,1715137848460,-500.0,0.00020273,2]
[326609036,1715137848470,-151.9145512,0.00020314,2]
[326609037,1715137848479,-4215.87522499,0.00020343,2]
[326609038,1715137848489,-161.63679389,0.00020351,2]
[326609039,1715137848498,-151.9145512,0.0002037,2]
[326609040,1715137848508,-150.0,0.000205,2]
[326609041,1715137848518,-500.0,0.00020547,2]
[326609042,1715137848528,-1112.47,0.00020547,2]
[326609043,1715137848538,-500.0,0.00020547,2]
[326609044,1715137848547,-500.0,0.00020547,2]
[326609045,1715137848557,-11627.08,0.00020547,2]
[326609046,1715137848567,-500.0,0.00020547,2]
[326609047,1715137848577,-500.0,0.00020547,2]
[326609048,1715137848588,-500.0,0.00020547,2]
[326609049,1715137848598,-500.0,0.00020547,2]
[326609050,1715137848607,-500.0,0.00020547,2]
[326609051,1715137848617,-500.0,0.00020547,2]
[326609052,1715137848627,-1184.38,0.00020547,2]
[326609053,1715137848636,-500.0,0.00020547,2]
[326609054,1715137848645,-3687.85,0.00020547,2]
[326609055,1715137848655,-500.0,0.00020547,2]
[326609056,1715137848667,-500.0,0.00020547,2]
[326609057,1715137848681,-1886.79,0.00020547,2]
[326609058,1715137848691,-500.0,0.00020547,2]
[326609059,1715137848700,-500.0,0.00020547,2]
[326609060,1715137848710,-500.0,0.00020547,2]
[326609061,1715137848720,-500.0,0.00020547,2]
[326609062,1715137848731,-500.0,0.00020547,2]
[326609063,1715137848743,-291.370452,0.00020548,2]
[326609064,1715137848752,-151.9145512,0.00020602,2]
[326609065,1715137848762,-158.3299398,0.00020662,2]
[326609066,1715137848772,-335.25,0.000208,2]
[326609067,1715137848781,-282.29,0.000208,2]
[326609068,1715137848791,-45866.65270678,0.00020809,2]
[326609069,1715137848800,-500.0,0.00020821,2]
[326609070,1715137848809,-1112.47,0.00020821,2]
[326609071,1715137848819,-500.0,0.00020821,2]
[326609072,1715137848828,-500.0,0.00020821,2]
[326609073,1715137848838,-11627.08,0.00020821,2]
[326609074,1715137848848,-530.50480794,0.00020821,2]
[326609075,1715137848858,-500.0,0.00020821,2]
[326609076,1715137848867,-500.0,0.00020821,2]
[326609077,1715137848877,-578.96225942,0.00020821,2]
[326609078,1715137848887,-500.0,0.00020821,2]
[326609079,1715137848896,-500.0,0.00020821,2]
[326609080,1715137848906,-1184.38,0.00020821,2]
[326609081,1715137848915,-500.0,0.00020821,2]
[326609082,1715137848925,-3687.85,0.00020821,2]
[326609083,1715137848935,-158.52516728,0.00020821,2]
[326609084,1715137848944,-500.0,0.00020821,2]
[326609085,1715137848954,-1886.79,0.00020821,2]
[326609086,1715137848963,-237.33,0.00020821,2]
[326609087,1715137848974,-500.0,0.00020821,2]
[326609088,1715137848983,-500.0,0.00020821,2]
[326609089,1715137848994,-500.0,0.00020821,2]
[326609090,1715137849003,-504.21402955,0.00020821,2]
[326609091,1715137849013,-153.8305885,0.00020886,2]
[326609092,1715137849024,-719.144145,0.00021,2]
[326609093,1715137849033,-165.51,0.00021,2]
[326609094,1715137849043,-150.0,0.00021,2]
[326609095,1715137849053,-153.8305885,0.00021008,2]
[326609096,1715137849063,-158.3299398,0.00021042,2]
[326609097,1715137849072,-500.0,0.00021095,2]
[326609098,1715137849083,-1112.47,0.00021095,2]
[326609099,1715137849092,-500.0,0.00021095,2]